lending/lending_fUSD_20250516
["ID","MTS","AMOUNT","RATE_DAILY","PERIOD"]
[361245644,1747389051926,-400.0,0.00016438,2]
[361245645,1747389051935,-400.0,0.00016438,2]
[361245647,1747389051946,-408.76930686,0.00016438,2]
[361245649,1747389051955,-400.0,0.00016438,2]
[361245651,1747389051964,-500.80505899,0.00016438,2]
[361245653,1747389051973,-400.0,0.00016438,2]
[361245655,1747389051983,-400.0,0.00016438,2]
[361245657,1747389051992,-1375.74,0.00016438,2]
[361245659,1747389052001,-400.0,0.00016438,2]
[361245661,1747389052011,-519.18,0.00016438,2]
[361245663,1747389052020,-400.0,0.00016438,2]
[361245665,1747389052029,-6732.8,0.00016438,2]
[361245667,1747389052038,-2296.12,0.00016438,2]
[361245669,1747389052047,-400.0,0.00016438,2]
[361245671,1747389052056,-2045.67,0.00016438,2]
[361245673,1747389052065,-400.0,0.00016438,2]
[361245675,1747389052074,-400.0,0.00016438,2]
[361245677,1747389052083,-400.0,0.00016438,2]
[361245679,1747389052093,-400.0,0.00016438,2]
[361245681,1747389052103,-2455.64,0.00016438,2]
[361245683,1747389052112,-407.06661274,0.00016438,2]
[361245685,1747389052121,-400.0,0.00016438,2]
[361245686,1747389052131,-500.0,0.00016438,2]
[361245688,1747389052140,-400.0,0.00016438,2]
[361245690,1747389052150,-1236.86,0.00016438,2]
[361245692,1747389052159,-400.0,0.00016438,2]
[361245694,1747389052168,-400.0,0.00016438,2]
[361245696,1747389052178,-7982.35,0.00016438,2]
[361245698,1747389052187,-400.0,0.00016438,2]
[361245700,1747389052197,-400.0,0.00016438,2]
[361245702,1747389052206,-1546.58,0.00016438,2]
[361245704,1747389052215,-1291.18,0.00016438,2]
[361245706,1747389052225,-400.0,0.00016438,2]
[361245708,1747389052235,-923.55,0.00016438,2]
[361245710,1747389052247,-400.0,0.00016438,2]
[361245712,1747389052258,-400.0,0.00016438,2]
[361245714,1747389052268,-917.96,0.00016438,2]
[361245716,1747389052278,-517.33,0.00016438,2]
[361245718,1747389052288,-424.43,0.00016438,2]
[361245720,1747389052297,-1910.56,0.00016438,2]
[361245722,1747389052307,-400.0,0.00016438,2]
[361245724,1747389052317,-444.12,0.00016438,2]
[361245726,1747389052327,-400.0,0.00016438,2]
[361245728,1747389052336,-400.51294966,0.00016438,2]
[361245730,1747389052346,-1039.19,0.00016438,2]
[361245732,1747389052356,-400.0,0.00016438,2]
[361245734,1747389052365,-400.0,0.00016438,2]
[361245736,1747389052375,-15595.23,0.00016438,2]
[361245738,1747389052384,-400.0,0.00016438,2]
[361245740,1747389052394,-3003.97,0.00016438,2]
[361245742,1747389052404,-1589.87,0.00016438,2]
[361245744,1747389052417,-400.0,0.00016438,2]
[361245746,1747389052427,-529.31,0.00016438,2]
[361245748,1747389052436,-400.0,0.00016438,2]
[361245750,1747389052446,-400.0,0.00016438,2]
[361245753,1747389052459,-400.0,0.00016438,2]
[361245755,1747389052470,-792.24,0.00016438,2]
[361245757,1747389052479,-400.0,0.00016438,2]
[361245759,1747389052489,-400.0,0.00016438,2]
[361245761,1747389052499,-400.0,0.00016438,2]
[361245763,1747389052509,-928.99,0.00016438,2]
[361245765,1747389052519,-400.0,0.00016438,2]
[361245767,1747389052529,-400.0,0.00016438,2]
[361245769,1747389052539,-400.0,0.00016438,2]
[361245771,1747389052548,-407.38213616,0.00016438,2]
[361245773,1747389052559,-400.0,0.00016438,2]
[361245775,1747389052568,-400.0,0.00016438,2]
[361245777,1747389052577,-2619.04,0.00016438,2]
[361245779,1747389052587,-838.33,0.00016438,2]
[361245781,1747389052597,-321.31,0.00016438,2]
[361245783,1747389052607,-486.13,0.00016438,2]
[361245785,1747389052616,-400.0,0.00016438,2]
[361245787,1747389052626,-400.93,0.00016438,2]
[361245789,1747389052636,-400.0,0.00016438,2]
[361245791,1747389052646,-903.7,0.00016438,2]
[361245792,1747389052662,-690.24,0.00016438,2]
[361245793,1747389052672,-400.0,0.00016438,2]
[361245794,1747389052682,-400.0,0.00016438,2]
[361245795,1747389052693,-400.0,0.00016438,2]
[361245796,1747389052704,-406.63,0.00016438,2]
[361245797,1747389052714,-400.0,0.00016438,2]
[361245798,1747389052724,-404.58,0.00016438,2]
[361245799,1747389052734,-400.0,0.00016438,2]
[361245800,1747389052744,-4208.48,0.00016438,2]
[361245801,1747389052754,-455.3,0.00016438,2]
[361245802,1747389052766,-746.65,0.00016438,2]
[361245803,1747389052776,-988.09,0.00016438,2]
[361245804,1747389052785,-460.05,0.00016438,2]
[361245806,1747389052795,-774.08,0.00016438,2]
[361245808,1747389052805,-400.0,0.00016438,2]
[361245810,1747389052816,-400.0,0.00016438,2]
[361245813,1747389052831,-400.0,0.00016438,2]
[361245815,1747389052846,-2223.79,0.00016438,2]
[361245817,1747389052856,-400.0,0.00016438,2]
[361245819,1747389052866,-400.0,0.00016438,2]
[361245821,1747389052876,-1725.82,0.00016438,2]
[361245823,1747389052886,-1887.66,0.00016438,2]
[361245825,1747389052896,-400.0,0.00016438,2]
[361245827,1747389052906,-400.0,0.00016438,2]
[361245829,1747389052916,-1621.38,0.00016438,2]
[361245831,1747389052926,-400.0,0.00016438,2]
[361245833,1747389052936,-400.0,0.00016438,2]
[361245835,1747389052947,-425.27,0.00016438,2]
[361245837,1747389052956,-400.0,0.00016438,2]
[361245839,1747389052966,-400.0,0.00016438,2]
[361245841,1747389052976,-1880.65,0.00016438,2]
[361245843,1747389052986,-926.79,0.00016438,2]
[361245845,1747389052996,-400.0,0.00016438,2]
[361245847,1747389053007,-400.0,0.00016438,2]
[361245849,1747389053017,-485.39,0.00016438,2]
[361245851,1747389053027,-725.33,0.00016438,2]
[361245853,1747389053037,-489.94,0.00016438,2]
[361245855,1747389053047,-2002.26,0.00016438,2]
[361245857,1747389053057,-1515.08,0.00016438,2]
[361245860,1747389053067,-400.0,0.00016438,2]
[361245861,1747389053076,-400.0,0.00016438,2]
[361245864,1747389053086,-400.0,0.00016438,2]
[361245866,1747389053097,-400.0,0.00016438,2]
[361245868,1747389053107,-1529.83,0.00016438,2]
[361245870,1747389053117,-400.0,0.00016438,2]
[361245872,1747389053128,-870.0,0.00016438,2]
[361245874,1747389053138,-1373.57,0.00016438,2]
[361245876,1747389053148,-649.86,0.00016438,2]
[361245878,1747389053158,-1091.35,0.00016438,2]
[361245880,1747389053168,-400.0,0.00016438,2]
[361245882,1747389053178,-400.0,0.00016438,2]
[361245884,1747389053188,-2395.95,0.00016438,2]
[361245886,1747389053199,-416.41,0.00016438,2]
[361245888,1747389053210,-400.0,0.00016438,2]
[361245890,1747389053220,-400.0,0.00016438,2]
[361245892,1747389053230,-400.0,0.00016438,2]
[361245894,1747389053240,-400.0,0.00016438,2]
[361245896,1747389053255,-400.0,0.00016438,2]
[361245898,1747389053265,-885.24,0.00016438,2]
[361245901,1747389053275,-400.0,0.00016438,2]
[361245903,1747389053286,-400.0,0.00016438,2]
[361245905,1747389053298,-400.0,0.00016438,2]
[361245907,1747389053308,-400.0,0.00016438,2]
[361245909,1747389053318,-400.0,0.00016438,2]
[361245911,1747389053330,-400.0,0.00016438,2]
[361245913,1747389053340,-32287.00596688,0.00016438,2]
[361246011,1747389054280,-20900.47903668,0.00016438,2]
[361246013,1747389054292,-369.04840763,0.00016438,2]
[361246015,1747389054303,-304.10863593,0.00016438,2]
[361246018,1747389054314,-17360.66526547,0.00016438,2]
[361246020,1747389054331,-12543.73099217,0.00016438,2]
[361246023,1747389054354,-1318.3450002,0.00016438,2]
[361246079,1747389054889,-300.65973278,0.00014237,2]
[361246081,1747389054898,-601.24026722,0.00016438,2]
[361246084,1747389054910,-3712.08920011,0.00016438,2]
[361246088,1747389054945,-11194.11041374,0.00016438,2]
[361246090,1747389054956,-313.85209409,0.00016438,2]
[361246099,1747389055031,-7250.22905,0.00014752,2]
[361246601,1747389139139,200.94155818,0.00027397,120]
[361246602,1747389150911,300.0,0.00025,30]
[361246603,1747389366191,160.08,0.00021945,30]
[361246606,1747389646223,700.0,0.00027397,120]
[361246607,1747389646385,700.0,0.00027397,120]
[361246608,1747389646484,700.0,0.00027397,120]
[361246609,1747389646667,483.12670703,0.00027397,120]
[361246611,1747389878403,150.0,0.000125,5]
[361246612,1747389884721,-280.66524886,0.0001,2]
[361246613,1747389886482,-169.33475114,0.0001,2]
[361246614,1747389937463,-174.53423895,0.00011492,2]
[361246615,1747389940855,-159.45780694,0.00011492,2]
[361246616,1747389942876,-219.33475114,0.00011492,2]
[361246633,1747390231634,-211.10480009,0.00011393,2]
[361246634,1747390231644,-433.11,0.00011493,2]
[361246635,1747390231653,-290.02,0.00011493,2]
[361246636,1747390231663,-890.92,0.00011493,2]
[361246637,1747390231675,-154.73,0.00011493,2]
[361246638,1747390231684,-647.0,0.00011998,2]
[361246639,1747390231694,-704.96,0.00012,2]
[361246640,1747390231704,-500.0,0.00012,2]
[361246641,1747390231713,-336.72363766,0.00012768,2]
[361246642,1747390231725,-430.92636234,0.00012768,2]
[361246643,1747390231735,-167.50883804,0.00012867,2]
[361246644,1747390231745,-1000.0,0.00012876,2]
[361246645,1747390231756,-1148.0,0.00013537,2]
[361246646,1747390231766,-1000.0,0.00013699,2]
[361246647,1747390231776,-550.0,0.00014,2]
[361246648,1747390231785,-250.0,0.00014595,2]
[361246649,1747390231796,-6685.67279962,0.00014619,2]
[361246650,1747390231807,-1746.355,0.00014619,2]
[361246651,1747390231820,-2616.96133254,0.00014619,2]
[361246652,1747390231834,-440.0,0.00014619,2]
[361246653,1747390231863,-3195.42086784,0.00014619,2]
[361246654,1747390231873,-310.83,0.00014673,2]
[361246655,1747390231882,-76.18783517,0.00014681,2]
[361246656,1747390231893,-123.81216483,0.00014681,2]
[361246657,1747390231904,-245.83,0.00014686,2]
[361246658,1747390231915,-2310.11,0.00014686,2]
[361246659,1747390231924,-5249.77095,0.00014752,2]
[361246660,1747390231934,-250.0,0.0001476,2]
[361246661,1747390231944,-525.32743728,0.00014764,2]
[361246662,1747390231956,-272.80967872,0.00014764,2]
[361246663,1747390231967,-201.862884,0.00014764,2]
[361246664,1747390231980,-207.4,0.00014764,2]
[361246665,1747390231990,-310.3625,0.00014774,2]
[361246666,1747390231999,-583.04216037,0.00014774,2]
[361246668,1747390232029,-1803.42653963,0.00014774,2]
[361246670,1747390232038,-2095.10125956,0.00014784,2]
[361246673,1747390232049,-681.02735992,0.00014784,2]
[361246685,1747390232163,-4417.31673857,0.00014784,2]
[361246689,1747390232196,-636.10140926,0.00014784,2]
[361246691,1747390232207,-1085.9649538,0.00014784,2]
[361246754,1747390237600,-733.57817889,0.00014784,2]
[361246755,1747390237609,-150.0,0.00014947,7]
[361246756,1747390237619,-200.0,0.00014962,2]
[361246757,1747390237628,-199.62,0.00015016,2]
[361246758,1747390237637,-767.65,0.00015032,2]
[361246759,1747390237646,-202.6,0.0001512,2]
[361246760,1747390237656,-1037.0,0.00015312,2]
[361246761,1747390237667,-682.23,0.0001538,2]
[361246762,1747390237677,-1000.0,0.00015448,2]
[361246763,1747390237688,-211.10480009,0.00015596,2]
[361246764,1747390237698,-1000.0,0.000156,5]
[361246765,1747390237707,-1384.253,0.00015622,2]
[361246766,1747390237720,-242.37,0.00015622,2]
[361246767,1747390237729,-151.0,0.00015678,2]
[361246768,1747390237739,-12500.0,0.00015687,2]
[361246769,1747390237749,-12500.0,0.00015696,2]
[361246770,1747390237758,-2100.0,0.000157,5]
[361246771,1747390237767,-12500.0,0.00015705,2]
[361246772,1747390237776,-420.88560689,0.00015705,2]
[361246773,1747390237788,-679.7799966,0.00015705,2]
[361246774,1747390237845,-10445.0,0.00015705,2]
[361246775,1747390237856,-954.33439651,0.00015705,2]
[361246776,1747390237867,-2632.52468452,0.0001576,2]
[361246777,1747390237918,-1983.39697639,0.0001576,2]
[361246779,1747390239798,-500.0,0.00015702,2]
[361246780,1747390239808,-345.84865992,0.00015702,2]
[361246781,1747390239915,-154.15134008,0.00015702,2]
[361246782,1747390239927,-500.0,0.00015702,2]
[361246783,1747390239937,-353.42095462,0.00015702,2]
[361246784,1747390239949,-146.57904538,0.00015702,2]
[361246785,1747390239959,-500.0,0.00015702,2]
[361246786,1747390239968,-500.0,0.00015702,2]
[361246787,1747390239977,-500.0,0.00015702,2]
[361246788,1747390239988,-430.69696268,0.00015702,2]
[361246789,1747390239998,-500.0,0.00015702,2]
[361246790,1747390240007,-500.0,0.00015702,2]
[361246791,1747390240017,-500.0,0.00015702,2]
[361246792,1747390240026,-306.27951833,0.00015702,2]
[361246793,1747390240036,-500.0,0.00015702,2]
[361246794,1747390240045,-500.0,0.00015702,2]
[361246795,1747390240054,-500.0,0.00015702,2]
[361246796,1747390240064,-500.0,0.00015702,2]
[361246797,1747390240073,-500.0,0.00015702,2]
[361246798,1747390240082,-500.0,0.00015702,2]
[361246799,1747390240091,-500.0,0.00015702,2]
[361246800,1747390240100,-500.0,0.00015702,2]
[361246801,1747390240110,-500.0,0.00015702,2]
[361246802,1747390240119,-500.0,0.00015702,2]
[361246803,1747390240128,-500.0,0.00015702,2]
[361246804,1747390240138,-500.0,0.00015702,2]
[361246805,1747390240147,-500.0,0.00015702,2]
[361246806,1747390240156,-500.0,0.00015702,2]
[361246808,1747390240166,-412.11396375,0.00015702,2]
[361246809,1747390240177,-87.88603625,0.00015702,2]
[361246810,1747390240187,-500.0,0.00015702,2]
[361246811,1747390240197,-500.0,0.00015702,2]
[361246812,1747390240206,-500.0,0.00015702,2]
[361246813,1747390240216,-500.0,0.00015702,2]
[361246814,1747390240225,-500.0,0.00015702,2]
[361246815,1747390240235,-500.0,0.00015702,2]
[361246816,1747390240245,-500.0,0.00015702,2]
[361246817,1747390240254,-500.0,0.00015702,2]
[361246818,1747390240263,-500.0,0.00015702,2]
[361246819,1747390240273,-500.0,0.00015702,2]
[361246820,1747390240282,-500.0,0.00015702,2]
[361246821,1747390240291,-640.87406042,0.00015702,2]
[361246822,1747390240301,-500.0,0.00015702,2]
[361246823,1747390240310,-500.0,0.00015702,2]
[361246824,1747390240319,-500.0,0.00015702,2]
[361246825,1747390240328,-500.0,0.00015702,2]
[361246826,1747390240337,-500.0,0.00015702,2]
[361246827,1747390240347,-500.0,0.00015702,2]
[361246828,1747390240355,-500.0,0.00015702,2]
[361246829,1747390240365,-500.0,0.00015702,2]
[361246830,1747390240374,-500.0,0.00015702,2]
[361246831,1747390240383,-500.0,0.00015702,2]
[361246832,1747390240392,-500.0,0.00015702,2]
[361246833,1747390240401,-500.0,0.00015702,2]
[361246834,1747390240411,-500.0,0.00015702,2]
[361246835,1747390240420,-500.0,0.00015702,2]
[361246836,1747390240429,-500.0,0.00015702,2]
[361246837,1747390240438,-500.0,0.00015702,2]
[361246838,1747390240448,-500.0,0.00015702,2]
[361246839,1747390240457,-500.0,0.00015702,2]
[361246840,1747390240466,-500.0,0.00015702,2]
[361246841,1747390240475,-500.0,0.00015702,2]
[361246842,1747390240485,-500.0,0.00015702,2]
[361246843,1747390240494,-500.0,0.00015702,2]
[361246844,1747390240503,-500.0,0.00015702,2]
[361246845,1747390240513,-500.0,0.00015702,2]
[361246846,1747390240522,-500.0,0.00015702,2]
[361246847,1747390240531,-500.0,0.00015702,2]
[361246848,1747390240540,-500.0,0.00015702,2]
[361246849,1747390240550,-500.0,0.00015702,2]
[361246850,1747390240559,-726.24002359,0.0001576,2]
[361246851,1747390240689,-500.0,0.00015702,2]
[361246852,1747390240699,-500.0,0.00015702,2]
[361246853,1747390240708,-500.0,0.00015702,2]
[361246854,1747390240717,-63066.19037192,0.0001576,2]
[361246855,1747390240726,-3100.0,0.000158,5]
[361246856,1747390240736,-1075.369,0.0001586,2]
[361246857,1747390240745,-150.0,0.0001589,2]
[361246858,1747390240754,-325.3,0.0001589,2]
[361246859,1747390240764,-452.87,0.0001589,2]
[361246860,1747390240774,-150.22,0.0001589,2]
[361246861,1747390240783,-452.87,0.0001589,2]
[361246862,1747390240792,-353.05,0.0001589,2]
[361246863,1747390240801,-452.87,0.0001589,2]
[361246864,1747390240810,-150.22,0.0001589,2]
[361246865,1747390240820,-353.05,0.0001589,2]
[361246866,1747390240832,-452.87,0.0001589,2]
[361246867,1747390240841,-353.05,0.0001589,2]
[361246868,1747390240851,-150.22,0.0001589,2]
[361246869,1747390240860,-452.87,0.0001589,2]
[361246870,1747390240870,-150.22,0.0001589,2]
[361246871,1747390240879,-353.05,0.0001589,2]
[361246872,1747390240888,-150.22,0.0001589,2]
[361246873,1747390240897,-452.87,0.0001589,2]
[361246874,1747390240907,-452.87,0.0001589,2]
[361246875,1747390240917,-450.08,0.0001589,2]
[361246876,1747390240926,-490.8,0.0001589,2]
[361246877,1747390240936,-452.87,0.0001589,2]
[361246878,1747390240945,-452.87,0.0001589,2]
[361246879,1747390240954,-426.78,0.0001589,2]
[361246880,1747390240963,-4200.0,0.000159,5]
[361246881,1747390240972,-1928.3,0.00015936,2]
[361246882,1747390240981,-209.82346727,0.00015945,2]
[361246883,1747390240991,-500.0,0.00015945,2]
[361246884,1747390241000,-254.12414319,0.00015945,2]
[361246885,1747390241009,-220.73011185,0.00015945,2]
[361246886,1747390241019,-68408.35205642,0.00015946,2]
[361246887,1747390241028,-353.65553577,0.00016,10]
[361246888,1747390241037,-600.0,0.00016,2]
[361246889,1747390241046,-890.92,0.0001609,2]
[361246890,1747390241055,-904.74,0.00016116,2]
[361246891,1747390241063,-1381.63,0.00016116,5]
[361246892,1747390241072,-299.99,0.00016116,4]
[361246893,1747390241081,-9999.99,0.00016116,2]
[361246894,1747390241091,-150.99,0.00016116,2]
[361246895,1747390241100,-3837.02988395,0.00016132,2]
[361246896,1747390241112,-64571.32217247,0.00016132,2]
[361246897,1747390241121,-215.0738,0.00016133,2]
[361246898,1747390241130,-353.05,0.00016164,2]
[361246899,1747390241140,-250.0,0.00016227,2]
[361246900,1747390241149,-1000.0,0.00016233,2]
[361246901,1747390241158,-271.21711473,0.00016235,2]
[361246902,1747390241167,-68408.35205642,0.00016318,2]
[361246903,1747390241176,-186.94986538,0.00016338,2]
[361246904,1747390241185,-168.39943058,0.00016338,2]
[361246905,1747390241194,-228.37567671,0.00016338,2]
[361246906,1747390241203,-165.76481806,0.00016355,2]
[361246907,1747390241213,-480.4158706,0.00016355,2]
[361246908,1747390241221,-1115.157653,0.00016408,2]
[361246909,1747390241230,-848.63871352,0.00016419,2]
[361246910,1747390241240,-1928.3,0.00016422,2]
[361246911,1747390241249,-167.36947106,0.00016428,2]
[361246912,1747390241258,-2997.4001063,0.00016432,2]
[361246913,1747390241267,-23590.78458852,0.00016432,2]
[361246917,1747390242742,-500.0,0.00015702,2]
[361246918,1747390242752,-1113.32282463,0.00016432,2]
[361246919,1747390242764,-2911.97788055,0.00016432,2]
[361246920,1747390242776,-961.60670292,0.00016432,2]
[361246921,1747390242788,-2723.58971298,0.00016432,2]
[361246922,1747390242797,-31621.2834241,0.00016434,2]
[361246923,1747390242810,-3552.5137074,0.00016434,2]
[361246924,1747390242825,-1050.66198298,0.00016437,5]
[361246925,1747390242838,-447.92,0.00016437,2]
[361246926,1747390242851,-339.47927693,0.00016438,2]
[361246927,1747390242862,-16154.86441023,0.00016438,2]
[361246928,1747390242914,-30945.78825748,0.00016438,2]
[361246929,1747390242940,-89335.91506763,0.00016438,2]
[361246930,1747390242960,-3896.67322716,0.00016438,2]
[361246931,1747390243006,-707.675,0.00016438,2]
[361246975,1747390245770,-418.08,0.00016438,2]
[361246976,1747390245804,-184.0,0.00016233,2]
[361246977,1747390245816,-1438.86002,0.00016438,2]
[361246978,1747390245893,-3434.12887577,0.00016438,2]
[361246979,1747390245906,-268.987887,0.00016438,2]
[361246980,1747390246009,-995.01,0.00016438,2]
[361246981,1747390246028,-26090.4320001,0.00016438,2]
[361246982,1747390246042,-291.29221288,0.00016438,2]
[361246993,1747390400751,50000.0,9.9e-05,2]
[361246994,1747390608266,160.08,0.00021945,30]
[361246995,1747390632055,4279.47461645,0.00025,30]
[361246996,1747391094897,157.0,0.0002739,120]
[361246997,1747391108220,1315.97,0.00027397,120]
[361247000,1747391143685,799.99,0.00027397,120]
[361247016,1747391431889,-1200.0,0.00010958,2]
[361247017,1747391431899,-700.0,0.00010959,2]
[361247018,1747391431908,-700.0,0.00010959,2]
[361247019,1747391431918,-700.0,0.00010959,2]
[361247020,1747391431928,-700.0,0.00010959,2]
[361247021,1747391431937,-700.0,0.00010959,2]
[361247022,1747391431946,-700.0,0.00010959,2]
[361247023,1747391431956,-700.0,0.00010959,2]
[361247024,1747391431965,-700.0,0.00010959,2]
[361247025,1747391431974,-534.13960989,0.00010999,2]
[361247026,1747391431983,-180.53803301,0.00010999,2]
[361247027,1747391431993,-500.0,0.00010999,2]
[361247028,1747391432004,-500.0,0.00010999,2]
[361247029,1747391432014,-500.0,0.00010999,2]
[361247030,1747391432023,-500.0,0.00010999,2]
[361247031,1747391432032,-500.0,0.00010999,2]
[361247032,1747391432042,-500.0,0.00010999,2]
[361247033,1747391432052,-500.0,0.00010999,2]
[361247034,1747391432062,-500.0,0.00010999,2]
[361247035,1747391432072,-470.47605144,0.00010999,2]
[361247036,1747391432081,-500.0,0.00010999,2]
[361247037,1747391432091,-500.0,0.00010999,2]
[361247038,1747391432100,-500.0,0.00010999,2]
[361247039,1747391432112,-500.0,0.00010999,2]
[361247040,1747391432122,-500.0,0.00010999,2]
[361247041,1747391432131,-500.0,0.00010999,2]
[361247042,1747391432141,-500.0,0.00010999,2]
[361247043,1747391432150,-500.0,0.00010999,2]
[361247044,1747391432160,-500.0,0.00010999,2]
[361247045,1747391432170,-500.0,0.00010999,2]
[361247046,1747391432180,-500.0,0.00010999,2]
[361247047,1747391432191,-500.0,0.00010999,2]
[361247048,1747391432200,-500.0,0.00010999,2]
[361247049,1747391432210,-500.0,0.00010999,2]
[361247050,1747391432220,-500.0,0.00010999,2]
[361247051,1747391432230,-500.0,0.00010999,2]
[361247052,1747391432240,-500.0,0.00010999,2]
[361247053,1747391432250,-500.0,0.00010999,2]
[361247054,1747391432259,-500.0,0.00010999,2]
[361247055,1747391432269,-500.0,0.00010999,2]
[361247057,1747391432279,-500.0,0.00010999,2]
[361247059,1747391432289,-500.0,0.00010999,2]
[361247061,1747391432298,-500.0,0.00010999,2]
[361247063,1747391432307,-500.0,0.00010999,2]
[361247065,1747391432317,-500.0,0.00010999,2]
[361247067,1747391432327,-500.0,0.00010999,2]
[361247069,1747391432337,-500.0,0.00010999,2]
[361247071,1747391432347,-500.0,0.00010999,2]
[361247073,1747391432356,-500.0,0.00010999,2]
[361247075,1747391432365,-500.0,0.00010999,2]
[361247077,1747391432375,-500.0,0.00010999,2]
[361247079,1747391432384,-548.40259115,0.00010999,2]
[361247081,1747391432393,-500.0,0.00010999,2]
[361247082,1747391432402,-500.0,0.00010999,2]
[361247085,1747391432412,-500.0,0.00010999,2]
[361247087,1747391432422,-500.0,0.00010999,2]
[361247088,1747391432432,-500.0,0.00010999,2]
[361247091,1747391432443,-500.0,0.00010999,2]
[361247092,1747391432456,-500.0,0.00010999,2]
[361247095,1747391432466,-500.0,0.00010999,2]
[361247097,1747391432477,-500.0,0.00010999,2]
[361247099,1747391432487,-500.0,0.00010999,2]
[361247101,1747391432497,-500.0,0.00010999,2]
[361247103,1747391432506,-29130.43323504,0.00011,2]
[361247105,1747391432518,-50255.96518207,0.00011,2]
[361247117,1747391432625,-5709.9774238,0.00011,2]
[361247119,1747391432637,-1815.3649273,0.00011,2]
[361247133,1747391432771,-2219.999976,0.00011,2]
[361247135,1747391432782,-193871.8216,0.00011,2]
[361247342,1747391437786,-331.47712857,0.00011,2]
[361247343,1747391437839,-20601.19310815,0.00011,2]
[361247344,1747391437896,-693.7126925,0.00011,2]
[361247345,1747391438004,-492.12,0.00011,2]
[361247346,1747391438060,-57117.92960996,0.00011,2]
[361247351,1747391439957,-998.69388295,0.00011,2]
[361247352,1747391440013,-6732.26500876,0.00011,2]
[361247353,1747391440024,-497.9702656,0.00011,2]
[361247354,1747391440468,-257041.84223126,0.00011,2]
[361247355,1747391440478,-161.51684347,0.000119,2]
[361247356,1747391440487,-48322.21874766,0.00012,2]
[361247357,1747391440497,-250.0,0.00012054,2]
[361247358,1747391440506,-1680.0,0.00012054,2]
[361247359,1747391440516,-500.0,0.0001245,2]
[361247360,1747391440525,-500.0,0.0001245,2]
[361247361,1747391440535,-500.0,0.0001245,2]
[361247362,1747391440544,-500.0,0.0001245,2]
[361247363,1747391440553,-182.69222995,0.0001245,2]
[361247364,1747391440563,-303.64921602,0.0001245,2]
[361247365,1747391440572,-703.95,0.000128,2]
[361247366,1747391440581,-504.51107829,0.00012877,2]
[361247367,1747391440590,-658.51604097,0.000129,2]
[361247368,1747391440600,-242.15404928,0.00012989,2]
[361247369,1747391440611,-1000.0,0.00012998,2]
[361247370,1747391440620,-1000.0,0.00012998,2]
[361247371,1747391440630,-1000.0,0.00012998,2]
[361247372,1747391440639,-1000.0,0.00012998,2]
[361247373,1747391440648,-184272.34006136,0.00012999,2]
[361247374,1747391440670,-614.704,0.00012999,2]
[361247375,1747391440707,-9429.67100035,0.00012999,2]
[361247376,1747391440718,-449.1,0.00012999,2]
[361247379,1747391442884,-1021.2999999,0.00012999,2]
[361247380,1747391443033,-674.89,0.00012999,2]
[361247381,1747391443055,-167091.65239477,0.00012999,2]
[361247382,1747391443067,-2457.35796407,0.00012999,2]
[361247383,1747391443099,-1567.17304762,0.00012999,2]
[361247384,1747391443110,-331.35905576,0.00012999,2]
[361247385,1747391443122,-414.68001201,0.00012999,2]